[Event "*** Titled Tuesday Blitz"]
[Site "Chess.com"]
[Date "2018.10.02"]
[Round "9"]
[White "chenrip"]
[Black "dmosesov"]
[Result "1-0"]
[WhiteElo "2393"]
[BlackElo "2304"]
[TimeControl "180+2"]
[EndTime "14:59:24 PDT"]
[Termination "chenrip won by resignation"]

1. e4 {[%clk 0:03:01.9]} 1... c5 {[%clk 0:03:00.2]} 2. Nf3 {[%clk 0:03:02.3]}
2... e6 {[%clk 0:03:01.6]} 3. g3 {[%clk 0:03:01.9]} 3... Nc6 {[%clk 0:02:49.6]}
4. Bg2 {[%clk 0:03:02.5]} 4... d5 {[%clk 0:02:48.4]} 5. exd5 {[%clk 0:03:03.1]}
5... exd5 {[%clk 0:02:46.1]} 6. O-O {[%clk 0:03:04.5]} 6... Nf6 {[%clk
0:02:47.3]} 7. h3 {[%clk 0:03:05.2]} 7... Be7 {[%clk 0:02:48.3]} 8. d4 {[%clk
0:03:06]} 8... O-O {[%clk 0:02:49.4]} 9. Nc3 {[%clk 0:03:06.4]} 9... h6 {[%clk
0:02:47.9]} 10. Be3 {[%clk 0:02:56]} 10... cxd4 {[%clk 0:02:11.3]} 11. Nxd4
{[%clk 0:02:55.1]} 11... Ne5 {[%clk 0:02:12.2]} 12. Qe2 {[%clk 0:02:36.4]} 12...
Nc4 {[%clk 0:02:10.2]} 13. Nxd5 {[%clk 0:02:10]} 13... Nxb2 {[%clk 0:01:29.9]}
14. Nxe7+ {[%clk 0:01:58.9]} 14... Qxe7 {[%clk 0:01:31.8]} 15. Qb5 {[%clk
0:01:56.2]} 15... Ne4 {[%clk 0:00:28.5]} 16. Qxb2 {[%clk 0:01:53.5]} 16... Nxg3
{[%clk 0:00:29.1]} 17. Rae1 {[%clk 0:01:44.4]} 17... Nxf1 {[%clk 0:00:28.2]} 18.
Kxf1 {[%clk 0:01:39.4]} 18... Qf6 {[%clk 0:00:27]} 19. Qb4 {[%clk 0:01:24.4]}
19... a5 {[%clk 0:00:25.1]} 20. Qb5 {[%clk 0:01:13]} 20... Ra6 {[%clk
0:00:24.5]} 21. Nf3 {[%clk 0:00:55.1]} 21... Rc6 {[%clk 0:00:11.4]} 22. Bd4
{[%clk 0:00:47.6]} 22... Qf5 {[%clk 0:00:12.6]} 23. Qxf5 {[%clk 0:00:43]} 23...
Bxf5 {[%clk 0:00:14.4]} 24. c3 {[%clk 0:00:44.5]} 24... b5 {[%clk 0:00:09.2]}
25. Nh4 {[%clk 0:00:42.6]} 25... Bd3+ {[%clk 0:00:10.1]} 26. Kg1 {[%clk
0:00:43.4]} 26... Rcc8 {[%clk 0:00:11.3]} 27. Re3 {[%clk 0:00:39.6]} 27... Bc4
{[%clk 0:00:12.4]} 28. a3 {[%clk 0:00:40.6]} 28... Rfe8 {[%clk 0:00:12.3]} 29.
Rg3 {[%clk 0:00:38.7]} 29... g6 {[%clk 0:00:07.7]} 30. Nf5 {[%clk 0:00:31.5]}
30... Kh7 {[%clk 0:00:07.3]} 31. Nd6 {[%clk 0:00:25.3]} 31... Re1+ {[%clk
0:00:08.8]} 32. Kh2 {[%clk 0:00:26.5]} 32... Rc7 {[%clk 0:00:06.5]} 33. Nxc4
{[%clk 0:00:26.6]} 33... Rxc4 {[%clk 0:00:08.4]} 34. Bd5 {[%clk 0:00:23.4]}
34... Rc7 {[%clk 0:00:09.4]} 35. Rf3 {[%clk 0:00:24.1]} 35... Ra1 {[%clk
0:00:08.6]} 36. Bxf7 {[%clk 0:00:21.1]} 36... Rxa3 {[%clk 0:00:09.7]} 37. Bd5
{[%clk 0:00:21.2]} 37... h5 {[%clk 0:00:07.7]} 38. Rf8 {[%clk 0:00:22.2]} 38...
g5 {[%clk 0:00:07.9]} 39. Be4+ {[%clk 0:00:22.3]} 39... Kh6 {[%clk 0:00:08.9]}
40. Rh8+ {[%clk 0:00:22.6]} 1-0

[Event "*** Titled Tuesday Blitz"]
[Site "Chess.com"]
[Date "2018.10.02"]
[Round "9"]
[White "FMJoseHerrera"]
[Black "TastyFrenchFries"]
[Result "0-1"]
[WhiteElo "2525"]
[BlackElo "2437"]
[TimeControl "180+2"]
[EndTime "14:59:25 PDT"]
[Termination "TastyFrenchFries won on time"]

1. Nf3 {[%clk 0:03:00.4]} 1... e6 {[%clk 0:03:01.9]} 2. g3 {[%clk 0:03:01.9]}
2... b6 {[%clk 0:02:58.3]} 3. Bg2 {[%clk 0:03:03.8]} 3... Bb7 {[%clk 0:02:57.4]}
4. d3 {[%clk 0:03:05.7]} 4... Nf6 {[%clk 0:02:54.9]} 5. Nc3 {[%clk 0:03:05.9]}
5... Be7 {[%clk 0:02:49.2]} 6. e4 {[%clk 0:03:06.1]} 6... O-O {[%clk 0:02:39.6]}
7. O-O {[%clk 0:03:05.5]} 7... d5 {[%clk 0:02:38.8]} 8. Bf4 {[%clk 0:03:06.1]}
8... c5 {[%clk 0:02:37.6]} 9. exd5 {[%clk 0:03:04.7]} 9... Nxd5 {[%clk
0:02:37.1]} 10. Bd2 {[%clk 0:03:04.3]} 10... Nc6 {[%clk 0:02:36.4]} 11. Ne4
{[%clk 0:03:01.3]} 11... Qd7 {[%clk 0:02:34.5]} 12. Re1 {[%clk 0:03:01.2]} 12...
h6 {[%clk 0:02:32.5]} 13. a3 {[%clk 0:03:00.6]} 13... Rae8 {[%clk 0:02:31]} 14.
Qc1 {[%clk 0:02:59]} 14... f5 {[%clk 0:02:29.2]} 15. Nc3 {[%clk 0:02:57.7]}
15... Kh7 {[%clk 0:02:29.2]} 16. Ne2 {[%clk 0:02:48.8]} 16... a5 {[%clk
0:02:16]} 17. c4 {[%clk 0:02:46.2]} 17... Nf6 {[%clk 0:02:15]} 18. Nf4 {[%clk
0:02:47.2]} 18... Bd6 {[%clk 0:02:03.4]} 19. Bc3 {[%clk 0:02:44.4]} 19... e5
{[%clk 0:02:00.8]} 20. Nd5 {[%clk 0:02:39.8]} 20... Nxd5 {[%clk 0:01:57.8]} 21.
cxd5 {[%clk 0:02:41.7]} 21... Nd4 {[%clk 0:01:57.5]} 22. Bxd4 {[%clk 0:02:33.2]}
22... exd4 {[%clk 0:01:59.4]} 23. b4 {[%clk 0:02:30.4]} 23... Rxe1+ {[%clk
0:01:51.5]} 24. Qxe1 {[%clk 0:02:30.2]} 24... Re8 {[%clk 0:01:50.3]} 25. Qd2
{[%clk 0:02:29.4]} 25... cxb4 {[%clk 0:01:47.6]} 26. Nxd4 {[%clk 0:02:26.6]}
26... bxa3 {[%clk 0:01:39.5]} 27. Nc6 {[%clk 0:02:16.4]} 27... Rc8 {[%clk
0:01:27.7]} 28. d4 {[%clk 0:02:12.1]} 28... Bxc6 {[%clk 0:01:21.2]} 29. dxc6
{[%clk 0:02:14]} 29... Rxc6 {[%clk 0:01:22.9]} 30. Bxc6 {[%clk 0:02:08.8]} 30...
Qxc6 {[%clk 0:01:24.8]} 31. Qd3 {[%clk 0:02:10.7]} 31... Qd5 {[%clk 0:01:23.9]}
32. Rb1 {[%clk 0:02:08.1]} 32... Bb4 {[%clk 0:01:19.4]} 33. Ra1 {[%clk
0:02:04.8]} 33... b5 {[%clk 0:01:16.8]} 34. h4 {[%clk 0:02:04]} 34... Bd6 {[%clk
0:01:15.5]} 35. g4 {[%clk 0:02:00.3]} 35... b4 {[%clk 0:01:14.4]} 36. gxf5
{[%clk 0:02:01.2]} 36... Kg8 {[%clk 0:00:56.8]} 37. Rc1 {[%clk 0:02:01.2]} 37...
a2 {[%clk 0:00:54.2]} 38. f6 {[%clk 0:01:52.5]} 38... b3 {[%clk 0:00:40.5]} 39.
Qg6 {[%clk 0:01:48.3]} 39... Qf7 {[%clk 0:00:38.6]} 40. Qg4 {[%clk 0:00:11]}
40... Qxf6 {[%clk 0:00:26.6]} 41. Qc8+ {[%clk 0:00:08.3]} 41... Kh7 {[%clk
0:00:25.1]} 42. Qc4 {[%clk 0:00:03.7]} 42... b2 {[%clk 0:00:20.7]} 43. Qc2+
{[%clk 0:00:04.3]} 43... Qg6+ {[%clk 0:00:20.5]} 0-1

[Event "*** Titled Tuesday Blitz"]
[Site "Chess.com"]
[Date "2018.10.02"]
[Round "9"]
[White "Zq1"]
[Black "ENEASZ"]
[Result "0-1"]
[WhiteElo "2584"]
[BlackElo "2596"]
[TimeControl "180+2"]
[EndTime "14:59:33 PDT"]
[Termination "ENEASZ won by resignation"]

1. d4 {[%clk 0:03:01.9]} 1... d6 {[%clk 0:03:01.9]} 2. Nf3 {[%clk 0:03:01.2]}
2... Nf6 {[%clk 0:03:02.6]} 3. c4 {[%clk 0:03:02]} 3... g6 {[%clk 0:03:03.5]} 4.
Nc3 {[%clk 0:03:03.1]} 4... Bg7 {[%clk 0:03:05.1]} 5. e4 {[%clk 0:03:04]} 5...
O-O {[%clk 0:03:06.8]} 6. Be2 {[%clk 0:03:05.3]} 6... e5 {[%clk 0:03:08.3]} 7.
O-O {[%clk 0:03:05.9]} 7... Nc6 {[%clk 0:03:08.5]} 8. d5 {[%clk 0:03:05.9]} 8...
Ne7 {[%clk 0:03:09.6]} 9. Ne1 {[%clk 0:03:06.2]} 9... Nd7 {[%clk 0:03:10.3]} 10.
Be3 {[%clk 0:03:07.8]} 10... f5 {[%clk 0:03:11.3]} 11. f3 {[%clk 0:03:09.3]}
11... f4 {[%clk 0:03:12.9]} 12. Bf2 {[%clk 0:03:10.7]} 12... g5 {[%clk
0:03:14.6]} 13. Nb5 {[%clk 0:03:10.7]} 13... b6 {[%clk 0:03:04.9]} 14. b4 {[%clk
0:03:10.5]} 14... Ng6 {[%clk 0:03:03]} 15. Nd3 {[%clk 0:03:10.1]} 15... Nf6
{[%clk 0:03:02]} 16. c5 {[%clk 0:03:10.3]} 16... Rf7 {[%clk 0:03:01.7]} 17. cxd6
{[%clk 0:03:07.2]} 17... cxd6 {[%clk 0:03:03.6]} 18. a4 {[%clk 0:03:05.4]} 18...
Bf8 {[%clk 0:03:04.2]} 19. a5 {[%clk 0:03:05.9]} 19... bxa5 {[%clk 0:03:05.5]}
20. bxa5 {[%clk 0:03:01.4]} 20... g4 {[%clk 0:03:06.4]} 21. Nb4 {[%clk
0:02:53.9]} 21... g3 {[%clk 0:03:03.3]} 22. hxg3 {[%clk 0:02:53.8]} 22... fxg3
{[%clk 0:03:05.2]} 23. Bxg3 {[%clk 0:02:54.6]} 23... Nh5 {[%clk 0:03:06.3]} 24.
Bh2 {[%clk 0:02:49.5]} 24... Qg5 {[%clk 0:03:05.3]} 25. Rc1 {[%clk 0:02:06.9]}
25... Ngf4 {[%clk 0:03:00.1]} 26. g4 {[%clk 0:02:06.1]} 26... Nh3+ {[%clk
0:02:17.7]} 27. Kh1 {[%clk 0:02:05.7]} 27... N5f4 {[%clk 0:02:19.6]} 28. Nd3
{[%clk 0:01:46.4]} 28... Nxe2 {[%clk 0:01:43.8]} 29. Qxe2 {[%clk 0:01:46]} 29...
h5 {[%clk 0:01:38.7]} 30. Nc7 {[%clk 0:01:44.1]} 30... Rb8 {[%clk 0:01:31.5]}
31. Ne6 {[%clk 0:01:44.5]} 31... Qh4 {[%clk 0:01:28.5]} 32. Qg2 {[%clk
0:01:27.9]} 32... hxg4 {[%clk 0:01:17.7]} 33. Qxg4+ {[%clk 0:01:15.8]} 33...
Qxg4 {[%clk 0:01:18.2]} 34. fxg4 {[%clk 0:01:16.6]} 34... Rxf1+ {[%clk
0:01:14.3]} 35. Rxf1 {[%clk 0:01:16.5]} 35... Ba6 {[%clk 0:01:11.3]} 36. Rxf8+
{[%clk 0:01:08.9]} 36... Rxf8 {[%clk 0:01:11.6]} 37. Nxf8 {[%clk 0:01:10]} 37...
Bxd3 {[%clk 0:01:13]} 38. Kg2 {[%clk 0:01:02.9]} 38... Bxe4+ {[%clk 0:01:02.5]}
39. Kxh3 {[%clk 0:01:01.3]} 39... Kxf8 {[%clk 0:01:04.4]} 40. Bg1 {[%clk
0:00:54.9]} 40... a6 {[%clk 0:01:05.2]} 41. Bb6 {[%clk 0:00:51.4]} 41... Bxd5
{[%clk 0:01:03.7]} 42. g5 {[%clk 0:00:52.9]} 42... Be4 {[%clk 0:01:02.4]} 43.
Kg4 {[%clk 0:00:52.2]} 43... Bg6 {[%clk 0:01:03.3]} 44. Bc7 {[%clk 0:00:50.2]}
44... Ke7 {[%clk 0:01:04.3]} 45. Kf3 {[%clk 0:00:51.3]} 45... Ke6 {[%clk
0:01:05.7]} 46. Ke3 {[%clk 0:00:51.3]} 46... d5 {[%clk 0:01:07.2]} 47. Bb6
{[%clk 0:00:52.2]} 47... Kf5 {[%clk 0:01:08.6]} 48. Ba7 {[%clk 0:00:46.7]} 48...
Kxg5 {[%clk 0:01:09]} 49. Bb6 {[%clk 0:00:48.3]} 49... Kf5 {[%clk 0:01:10.4]}
50. Ba7 {[%clk 0:00:49.4]} 50... Ke6 {[%clk 0:01:09.9]} 51. Bb6 {[%clk
0:00:49.2]} 51... Kd6 {[%clk 0:01:10.5]} 52. Ba7 {[%clk 0:00:50.1]} 52... Kc6
{[%clk 0:01:10.7]} 53. Bb6 {[%clk 0:00:51]} 53... Kb5 {[%clk 0:01:09.6]} 54. Bc7
{[%clk 0:00:47]} 54... d4+ {[%clk 0:01:10.3]} 55. Kd2 {[%clk 0:00:46.2]} 55...
e4 {[%clk 0:01:10.5]} 56. Be5 {[%clk 0:00:42.8]} 56... e3+ {[%clk 0:01:10.3]}
57. Ke2 {[%clk 0:00:40.2]} 57... Kc4 {[%clk 0:01:12.2]} 58. Bf4 {[%clk
0:00:38.5]} 58... Bh5+ {[%clk 0:01:11.2]} 59. Ke1 {[%clk 0:00:38.9]} 59... Kd3
{[%clk 0:01:12.8]} 60. Bd6 {[%clk 0:00:36.4]} 60... Kc3 {[%clk 0:01:07.3]} 61.
Bc5 {[%clk 0:00:34.9]} 61... Bg4 {[%clk 0:01:07.7]} 62. Bb6 {[%clk 0:00:34.9]}
62... Kd3 {[%clk 0:01:08.2]} 63. Bc5 {[%clk 0:00:35.6]} 63... Ke4 {[%clk
0:01:09.1]} 64. Bb6 {[%clk 0:00:34.7]} 64... d3 {[%clk 0:01:06.1]} 0-1

[Event "*** Titled Tuesday Blitz"]
[Site "Chess.com"]
[Date "2018.10.02"]
[Round "9"]
[White "Korchmar_Vasiliy"]
[Black "Shant_Sargsyan"]
[Result "1/2-1/2"]
[WhiteElo "2712"]
[BlackElo "2892"]
[TimeControl "180+2"]
[EndTime "14:59:42 PDT"]
[Termination "Game drawn by repetition"]

1. d4 {[%clk 0:03:01.5]} 1... Nf6 {[%clk 0:03:00.7]} 2. c4 {[%clk 0:03:03.1]}
2... e6 {[%clk 0:03:02.2]} 3. Nc3 {[%clk 0:03:03.7]} 3... Bb4 {[%clk 0:03:03.6]}
4. e3 {[%clk 0:03:05.1]} 4... O-O {[%clk 0:03:04.5]} 5. Bd3 {[%clk 0:03:06.2]}
5... d5 {[%clk 0:03:06.1]} 6. Nf3 {[%clk 0:03:06.8]} 6... dxc4 {[%clk
0:03:06.9]} 7. Bxc4 {[%clk 0:03:07.8]} 7... c5 {[%clk 0:03:08.8]} 8. O-O {[%clk
0:03:08]} 8... Nc6 {[%clk 0:03:10]} 9. a3 {[%clk 0:02:54.7]} 9... Ba5 {[%clk
0:03:11.4]} 10. dxc5 {[%clk 0:02:52.9]} 10... Bxc3 {[%clk 0:03:12.8]} 11. bxc3
{[%clk 0:02:54.8]} 11... Qxd1 {[%clk 0:03:13.9]} 12. Rxd1 {[%clk 0:02:54.3]}
12... Na5 {[%clk 0:03:15.8]} 13. Be2 {[%clk 0:02:40.3]} 13... Ne4 {[%clk
0:03:15.6]} 14. Bb2 {[%clk 0:02:37]} 14... Nxc5 {[%clk 0:03:05.8]} 15. a4 {[%clk
0:02:31.4]} 15... b6 {[%clk 0:03:06.5]} 16. Ba3 {[%clk 0:02:30.1]} 16... Bb7
{[%clk 0:03:07.1]} 17. Bxc5 {[%clk 0:02:16.4]} 17... bxc5 {[%clk 0:03:09]} 18.
Rab1 {[%clk 0:02:18.1]} 18... Bc6 {[%clk 0:03:08]} 19. Bb5 {[%clk 0:02:17.1]}
19... Be4 {[%clk 0:03:09.3]} 20. Rb2 {[%clk 0:02:15]} 20... Rab8 {[%clk
0:02:58.3]} 21. Ne5 {[%clk 0:02:13.5]} 21... Rfd8 {[%clk 0:02:51.6]} 22. Rbd2
{[%clk 0:02:09.2]} 22... Rxd2 {[%clk 0:02:43.1]} 23. Rxd2 {[%clk 0:02:11.1]}
23... f6 {[%clk 0:02:44.6]} 24. f3 {[%clk 0:02:00]} 24... Bd5 {[%clk 0:02:27.9]}
25. e4 {[%clk 0:01:57.7]} 25... Bb3 {[%clk 0:02:10.7]} 26. Nd7 {[%clk
0:01:58.2]} 26... Rc8 {[%clk 0:02:09.5]} 27. Rd6 {[%clk 0:01:58.5]} 27... Rc7
{[%clk 0:02:04.5]} 28. Nb8 {[%clk 0:01:28.9]} 28... Rc8 {[%clk 0:01:42]} 29. Nc6
{[%clk 0:01:11.6]} 29... Nxc6 {[%clk 0:01:41.5]} 30. Bxc6 {[%clk 0:01:12.8]}
30... Rc7 {[%clk 0:01:36.4]} 31. Bb5 {[%clk 0:00:59.7]} 31... Kf7 {[%clk
0:01:37.4]} 32. Kf2 {[%clk 0:01:00.8]} 32... Ke7 {[%clk 0:01:38.8]} 33. Ra6
{[%clk 0:01:00.6]} 33... e5 {[%clk 0:01:39.5]} 34. Ke3 {[%clk 0:00:59.1]} 34...
Be6 {[%clk 0:01:41]} 35. Ra5 {[%clk 0:00:40.1]} 35... Bc8 {[%clk 0:01:41.2]} 36.
Ba6 {[%clk 0:00:37.1]} 36... Be6 {[%clk 0:01:39.5]} 37. Bb5 {[%clk 0:00:37.2]}
37... Bc8 {[%clk 0:01:25.1]} 38. Ba6 {[%clk 0:00:37.7]} 38... Bd7 {[%clk
0:01:25]} 39. Bb5 {[%clk 0:00:37.7]} 39... Be6 {[%clk 0:01:21.4]} 40. Ba6 {[%clk
0:00:38]} 40... Kd6 {[%clk 0:01:20.7]} 41. Bb5 {[%clk 0:00:35.6]} 41... Bc8
{[%clk 0:01:19.9]} 42. Ba6 {[%clk 0:00:35.9]} 42... Bd7 {[%clk 0:01:12.1]} 43.
Bb5 {[%clk 0:00:36.7]} 43... Bxb5 {[%clk 0:01:13.6]} 44. Rxb5 {[%clk 0:00:31.5]}
44... c4 {[%clk 0:01:14.8]} 45. g3 {[%clk 0:00:19.9]} 45... a6 {[%clk
0:01:07.2]} 46. Rb6+ {[%clk 0:00:09.9]} 46... Rc6 {[%clk 0:01:08.6]} 47. Rb7
{[%clk 0:00:11.4]} 47... Rc7 {[%clk 0:01:09.5]} 48. Rb6+ {[%clk 0:00:12.8]}
48... Rc6 {[%clk 0:00:54.4]} 49. Rb7 {[%clk 0:00:13.5]} 49... Rc7 {[%clk
0:00:41.5]} 50. Rb6+ {[%clk 0:00:14.4]} 50... Rc6 {[%clk 0:00:38.4]} 1/2-1/2

[Event "*** Titled Tuesday Blitz"]
[Site "Chess.com"]
[Date "2018.10.02"]
[Round "9"]
[White "b_6"]
[Black "51616516516"]
[Result "1/2-1/2"]
[WhiteElo "2389"]
[BlackElo "2304"]
[TimeControl "180+2"]
[EndTime "14:59:44 PDT"]
[Termination "Game drawn by repetition"]

1. d4 {[%clk 0:03:01.9]} 1... Nf6 {[%clk 0:02:59.8]} 2. Bf4 {[%clk 0:03:02.3]}
2... g6 {[%clk 0:02:55.8]} 3. Nc3 {[%clk 0:03:03.2]} 3... d5 {[%clk 0:02:56.5]}
4. e3 {[%clk 0:03:04.1]} 4... Bg7 {[%clk 0:02:57.6]} 5. h4 {[%clk 0:02:59.7]}
5... h5 {[%clk 0:02:57]} 6. Be2 {[%clk 0:03:00.5]} 6... c5 {[%clk 0:02:35]} 7.
Nb5 {[%clk 0:03:00.4]} 7... Na6 {[%clk 0:02:35]} 8. c3 {[%clk 0:02:54.9]} 8...
O-O {[%clk 0:02:29.1]} 9. Nf3 {[%clk 0:02:54.2]} 9... Bd7 {[%clk 0:02:26.3]} 10.
Ne5 {[%clk 0:02:41.1]} 10... Bxb5 {[%clk 0:02:23.7]} 11. Bxb5 {[%clk 0:02:41.7]}
11... Nc7 {[%clk 0:02:25.6]} 12. Bd3 {[%clk 0:02:33]} 12... Ne6 {[%clk
0:02:10.3]} 13. Bg3 {[%clk 0:02:30.4]} 13... Nd7 {[%clk 0:02:09.7]} 14. Nf3
{[%clk 0:02:18]} 14... Rc8 {[%clk 0:01:58.2]} 15. O-O {[%clk 0:02:17.8]} 15...
a6 {[%clk 0:01:52.3]} 16. Re1 {[%clk 0:02:12.2]} 16... b5 {[%clk 0:01:50.1]} 17.
a3 {[%clk 0:02:01.6]} 17... Qb6 {[%clk 0:01:50.3]} 18. b4 {[%clk 0:01:42.3]}
18... cxd4 {[%clk 0:01:41.4]} 19. cxd4 {[%clk 0:01:42.5]} 19... a5 {[%clk
0:01:34.6]} 20. Qe2 {[%clk 0:01:30.1]} 20... Nc7 {[%clk 0:01:02]} 21. Rec1
{[%clk 0:01:20]} 21... axb4 {[%clk 0:00:25.7]} 22. axb4 {[%clk 0:01:20]} 22...
Nf6 {[%clk 0:00:19.7]} 23. Be5 {[%clk 0:00:59]} 23... Na6 {[%clk 0:00:18.6]} 24.
Qb2 {[%clk 0:00:45.2]} 24... Ne4 {[%clk 0:00:16.9]} 25. Bxg7 {[%clk 0:00:44.9]}
25... Kxg7 {[%clk 0:00:17.8]} 26. Bxe4 {[%clk 0:00:46.1]} 26... dxe4 {[%clk
0:00:17.7]} 27. Nd2 {[%clk 0:00:43]} 27... f5 {[%clk 0:00:16.2]} 28. Nb3 {[%clk
0:00:39.1]} 28... Nxb4 {[%clk 0:00:12.6]} 29. Nc5 {[%clk 0:00:40]} 29... Nd3
{[%clk 0:00:08.3]} 30. Nxd3 {[%clk 0:00:32.7]} 30... exd3 {[%clk 0:00:10.2]} 31.
Qd2 {[%clk 0:00:26.9]} 31... b4 {[%clk 0:00:05.4]} 32. Qxd3 {[%clk 0:00:27.9]}
32... b3 {[%clk 0:00:05.8]} 33. Rxc8 {[%clk 0:00:18.9]} 33... Rxc8 {[%clk
0:00:06.5]} 34. Ra6 {[%clk 0:00:18.5]} 34... Qxa6 {[%clk 0:00:04.5]} 35. Qxa6
{[%clk 0:00:18.6]} 35... Rc1+ {[%clk 0:00:05.4]} 36. Kh2 {[%clk 0:00:19.2]}
36... b2 {[%clk 0:00:07.3]} 37. Qb7 {[%clk 0:00:15.6]} 37... b1=Q {[%clk
0:00:08]} 38. Qxe7+ {[%clk 0:00:17.2]} 38... Kg8 {[%clk 0:00:08.5]} 39. Qe8+
{[%clk 0:00:18.3]} 39... Kg7 {[%clk 0:00:09.5]} 40. Qe7+ {[%clk 0:00:19.6]}
40... Kh6 {[%clk 0:00:09.5]} 41. Qf8+ {[%clk 0:00:19.2]} 41... Kh7 {[%clk
0:00:10.8]} 42. Qf7+ {[%clk 0:00:19.1]} 42... Kh8 {[%clk 0:00:12.1]} 43. Qf8+
{[%clk 0:00:19.4]} 43... Kh7 {[%clk 0:00:13.2]} 44. Qf7+ {[%clk 0:00:20.9]}
44... Kh6 {[%clk 0:00:13.1]} 45. Qf8+ {[%clk 0:00:21.8]} 45... Kh7 {[%clk
0:00:13.9]} 46. Qf7+ {[%clk 0:00:23]} 46... Kh8 {[%clk 0:00:14.9]} 47. Qf8+
{[%clk 0:00:23.5]} 47... Kh7 {[%clk 0:00:16.1]} 48. Qf7+ {[%clk 0:00:24.9]}
48... Kh8 {[%clk 0:00:17.3]} 49. Qf8+ {[%clk 0:00:26.4]} 49... Kh7 {[%clk
0:00:18.4]} 1/2-1/2

[Event "*** Titled Tuesday Blitz"]
[Site "Chess.com"]
[Date "2018.10.02"]
[Round "9"]
[White "GHANDEEVAM2003"]
[Black "Indianlad"]
[Result "1/2-1/2"]
[WhiteElo "2887"]
[BlackElo "2816"]
[TimeControl "180+2"]
[EndTime "15:00:32 PDT"]
[Termination "Game drawn by agreement"]

1. Nf3 {[%clk 0:03:01.9]} 1... Nf6 {[%clk 0:03:01.4]} 2. c4 {[%clk 0:03:02.9]}
2... g6 {[%clk 0:03:02]} 3. Nc3 {[%clk 0:03:02.7]} 3... Bg7 {[%clk 0:03:03.6]}
4. e4 {[%clk 0:03:03.5]} 4... O-O {[%clk 0:03:05.5]} 5. d4 {[%clk 0:03:04.2]}
5... d6 {[%clk 0:03:06.7]} 6. Be2 {[%clk 0:03:05.5]} 6... Nc6 {[%clk 0:03:08.2]}
7. d5 {[%clk 0:03:03.3]} 7... Nb8 {[%clk 0:03:09.3]} 8. O-O {[%clk 0:03:03.5]}
8... e6 {[%clk 0:03:10.8]} 9. Bg5 {[%clk 0:03:03.5]} 9... h6 {[%clk 0:03:11.3]}
10. Bh4 {[%clk 0:03:04.7]} 10... g5 {[%clk 0:03:11.6]} 11. Bg3 {[%clk
0:03:05.2]} 11... Nh5 {[%clk 0:03:13.2]} 12. Nd4 {[%clk 0:03:02.9]} 12... Nxg3
{[%clk 0:03:13.8]} 13. hxg3 {[%clk 0:03:04.8]} 13... a5 {[%clk 0:03:07.4]} 14.
Qd2 {[%clk 0:03:04.7]} 14... Na6 {[%clk 0:03:07.5]} 15. Rad1 {[%clk 0:03:05.4]}
15... Nc5 {[%clk 0:03:08.3]} 16. f4 {[%clk 0:03:05.8]} 16... e5 {[%clk
0:03:05.1]} 17. Ndb5 {[%clk 0:02:51.4]} 17... exf4 {[%clk 0:02:59.9]} 18. gxf4
{[%clk 0:02:53.3]} 18... g4 {[%clk 0:03:01.4]} 19. Qe3 {[%clk 0:02:22.5]} 19...
Re8 {[%clk 0:02:57.4]} 20. f5 {[%clk 0:02:11.3]} 20... Bxc3 {[%clk 0:02:26.7]}
21. Nxc3 {[%clk 0:02:03.4]} 21... Qg5 {[%clk 0:02:28]} 22. Qxg5+ {[%clk
0:01:25.1]} 22... hxg5 {[%clk 0:02:28]} 23. Bxg4 {[%clk 0:01:27]} 23... Bd7
{[%clk 0:02:09.9]} 24. Rfe1 {[%clk 0:01:23.4]} 24... f6 {[%clk 0:02:10.8]} 25.
Kf2 {[%clk 0:01:22.1]} 25... Kg7 {[%clk 0:02:11.5]} 26. Bh5 {[%clk 0:01:19.7]}
26... Rh8 {[%clk 0:02:12.3]} 27. Rh1 {[%clk 0:01:21.1]} 27... a4 {[%clk
0:02:08.2]} 28. Bf3 {[%clk 0:01:19.5]} 28... Rxh1 {[%clk 0:02:05.6]} 29. Rxh1
{[%clk 0:01:21.4]} 29... Nd3+ {[%clk 0:02:07]} 30. Ke3 {[%clk 0:01:17]} 30...
Nxb2 {[%clk 0:02:08.9]} 31. Kd4 {[%clk 0:01:18.6]} 31... a3 {[%clk 0:02:04.4]}
32. Rb1 {[%clk 0:01:07.1]} 32... b6 {[%clk 0:02:03.7]} 33. Nd1 {[%clk
0:00:59.7]} 33... Na4 {[%clk 0:02:01.8]} 34. Nc3 {[%clk 0:00:49.9]} 34... Nc5
{[%clk 0:02:03.3]} 35. Ne2 {[%clk 0:00:50.2]} 35... Ra4 {[%clk 0:01:44.7]} 36.
Nc3 {[%clk 0:00:51.2]} 36... Ra5 {[%clk 0:01:45.2]} 37. Ne2 {[%clk 0:00:51.5]}
37... Ra8 {[%clk 0:01:45.7]} 38. Ng3 {[%clk 0:00:51.3]} 38... Ra4 {[%clk
0:01:46.1]} 39. Nh5+ {[%clk 0:00:47]} 39... Kf7 {[%clk 0:01:46.8]} 40. Bd1
{[%clk 0:00:45.7]} 40... Ra8 {[%clk 0:01:43.9]} 41. Be2 {[%clk 0:00:41.6]} 41...
Re8 {[%clk 0:01:43.5]} 42. Ng3 {[%clk 0:00:41]} 42... Rh8 {[%clk 0:01:34.3]} 43.
Bh5+ {[%clk 0:00:33.7]} 43... Ke7 {[%clk 0:01:35.7]} 44. Kc3 {[%clk 0:00:32.2]}
44... Nxe4+ {[%clk 0:01:34]} 45. Nxe4 {[%clk 0:00:34.1]} 45... Rxh5 {[%clk
0:01:35.2]} 46. Re1 {[%clk 0:00:36]} 46... Kf7 {[%clk 0:01:34.5]} 47. Kb4 {[%clk
0:00:37.3]} 47... Bxf5 {[%clk 0:01:34.5]} 48. Ng3 {[%clk 0:00:37.6]} 48... Rh2
{[%clk 0:01:29]} 49. Nxf5 {[%clk 0:00:37.8]} 49... Rxg2 {[%clk 0:01:30.6]} 50.
Kxa3 {[%clk 0:00:33.8]} 50... Rf2 {[%clk 0:01:32.1]} 51. Nd4 {[%clk 0:00:32.9]}
51... g4 {[%clk 0:01:32.5]} 52. Ne6 {[%clk 0:00:30.9]} 52... f5 {[%clk
0:01:31.1]} 53. Nxc7 {[%clk 0:00:31.4]} 53... g3 {[%clk 0:01:31.3]} 54. Nb5
{[%clk 0:00:29.9]} 54... g2 {[%clk 0:01:25.9]} 55. Nxd6+ {[%clk 0:00:31.1]}
55... Kf6 {[%clk 0:01:27.1]} 56. Rg1 {[%clk 0:00:32.5]} 56... Ke5 {[%clk
0:01:23.2]} 57. Nf7+ {[%clk 0:00:30.1]} 57... Kf6 {[%clk 0:01:17.5]} 58. Nd6
{[%clk 0:00:29.6]} 58... Re2 {[%clk 0:01:14.2]} 59. Nxf5 {[%clk 0:00:13.8]}
59... Kxf5 {[%clk 0:01:16.1]} 60. Kb4 {[%clk 0:00:15.1]} 60... Ke5 {[%clk
0:01:17.7]} 61. Kb5 {[%clk 0:00:15.7]} 61... Kd6 {[%clk 0:01:19.2]} 62. Kxb6
{[%clk 0:00:10.8]} 62... Rb2+ {[%clk 0:01:20.6]} 63. Ka5 {[%clk 0:00:11.8]}
63... Rxa2+ {[%clk 0:01:21.6]} 64. Kb4 {[%clk 0:00:12.8]} 64... Rf2 {[%clk
0:01:18.6]} 65. Kc3 {[%clk 0:00:13.3]} 65... Kc5 {[%clk 0:01:19.2]} 66. Kd3
{[%clk 0:00:13.4]} 66... Ra2 {[%clk 0:01:08.7]} 1/2-1/2